bitfinex/quotes_BTCUSD_20250519
["timestamp","ask_amount","ask_price","bid_price","bid_amount"]
[1747643025614,0.00014374,103260.0,103250.0,2.00275901]
[1747643027198,0.00014374,103260.0,103250.0,2.00815155]
[1747643030494,0.0101,103280.0,103270.0,0.254716]
[1747643030627,0.0101,103280.0,103270.0,0.7657254]
[1747643031259,0.0101,103280.0,103270.0,0.78026625]
[1747643031675,0.0101,103280.0,103270.0,0.78226625]
[1747643031873,0.0101,103280.0,103270.0,0.79639719]
[1747643032882,0.01014787,103280.0,103270.0,0.79639719]
[1747643034556,0.01014787,103280.0,103270.0,0.80591074]
[1747643035478,0.01014787,103280.0,103270.0,1.02295074]
[1747643035887,0.01014787,103280.0,103270.0,1.22396989]
[1747643036211,0.01014787,103280.0,103270.0,1.22400989]
[1747643036839,0.01014787,103280.0,103270.0,1.22625652]
[1747643039047,0.01014787,103280.0,103270.0,1.01065652]
[1747643039243,0.01014787,103280.0,103270.0,1.22561652]
[1747643039584,0.01014787,103280.0,103270.0,1.24015737]
[1747643040219,0.01014787,103280.0,103270.0,1.24003737]
[1747643040420,0.01014787,103280.0,103270.0,1.21659149]
[1747643040872,0.01014787,103280.0,103270.0,1.21459149]
[1747643041082,0.01014787,103280.0,103270.0,1.21959149]
[1747643041301,0.01014787,103280.0,103270.0,1.21759149]
[1747643041621,0.01014787,103280.0,103270.0,1.22159149]
[1747643042129,0.01014787,103280.0,103270.0,1.21759149]
[1747643042326,0.01014787,103280.0,103270.0,1.22259149]
[1747643043977,0.01014787,103280.0,103270.0,0.78111794]
[1747643044663,0.01014787,103280.0,103270.0,0.99815794]
[1747643048291,0.01014787,103280.0,103270.0,1.0071747]
[1747643064620,0.01014787,103280.0,103270.0,1.2201347]
[1747643065903,0.01014787,103280.0,103270.0,1.21474216]
[1747643066135,0.01014787,103280.0,103270.0,1.2057254]
[1747643067579,0.01014787,103280.0,103270.0,1.5457254]
[1747643068553,0.01014787,103280.0,103270.0,1.1157254]
[1747643068670,0.01014787,103280.0,103270.0,1.5446854]
[1747643069086,0.01014787,103280.0,103270.0,1.5446054]
[1747643069528,0.01014787,103280.0,103270.0,1.5290054]
[1747643069730,0.01014787,103280.0,103270.0,1.5449054]
[1747643074577,0.01014787,103280.0,103270.0,1.55944625]
[1747643075543,0.01014787,103280.0,103270.0,1.57225056]
[1747643075936,0.01014787,103280.0,103270.0,1.58666782]
[1747643076987,0.02603311,103290.0,103280.0,0.22269445]
[1747643077161,0.02603311,103290.0,103280.0,0.33280816]
[1747643077790,0.02603311,103290.0,103280.0,0.33821411]
[1747643078199,0.02603311,103290.0,103280.0,0.34221411]
[1747643078360,0.02603311,103290.0,103280.0,0.96955411]
[1747643078995,0.02603311,103290.0,103280.0,0.97856225]
[1747643079194,0.02603311,103290.0,103280.0,0.98156225]
[1747643080088,0.02603311,103290.0,103280.0,0.88425285]
[1747643080261,0.05803311,103290.0,103280.0,0.67061285]
[1747643080771,0.05803311,103290.0,103280.0,0.64156673]
[1747643080974,0.27102499,103290.0,103280.0,0.64156673]
[1747643081305,0.27102499,103290.0,103280.0,0.4479184]
[1747643081514,0.27102499,103290.0,103280.0,0.0342184]
[1747643081721,0.27102499,103290.0,103280.0,0.23354905]
[1747643081922,0.27102499,103290.0,103280.0,0.23054905]
[1747643082132,0.27102499,103290.0,103280.0,0.23254905]
[1747643082344,0.27102499,103290.0,103280.0,0.23454905]
[1747643082699,0.27102499,103290.0,103280.0,0.22554091]
[1747643083390,0.02603311,103290.0,103280.0,0.24490471]
[1747643083596,0.05101383,103290.0,103280.0,0.24490471]
[1747643083815,0.04133311,103290.0,103280.0,0.24490471]
[1747643084007,0.05101374,103290.0,103280.0,0.24490471]
[1747643085492,0.03571374,103290.0,103280.0,0.24490471]
[1747643086157,0.03571374,103290.0,103280.0,0.23885709]
[1747643086345,0.03571374,103290.0,103280.0,0.24561341]
[1747643086485,0.06169456,103290.0,103280.0,0.24561341]
[1747643086683,0.05201374,103290.0,103280.0,0.24561341]
[1747643086916,0.05201374,103290.0,103280.0,0.25514202]
[1747643087749,0.05201374,103290.0,103280.0,0.24561341]
[1747643087908,0.08677547,103290.0,103280.0,0.24561341]
[1747643088333,0.09645666,103290.0,103280.0,0.24561341]
[1747643088631,0.29008699,103290.0,103280.0,0.23593174]
[1747643088841,0.28040627,103290.0,103280.0,0.23593174]
[1747643089168,0.28040627,103290.0,103280.0,0.02291896]
[1747643089436,0.26104407,103290.0,103280.0,0.2262497]
[1747643089565,0.52066441,103290.0,103280.0,0.02291896]
[1747643089966,0.35835347,103290.0,103280.0,0.02291896]
[1747643092204,0.73162441,103290.0,103280.0,0.02291896]
[1747643092852,0.73162441,103290.0,103280.0,0.01075669]
[1747643093069,0.73162441,103290.0,103280.0,0.004]
[1747643093267,0.73162441,103290.0,103280.0,0.002]
[1747643093683,0.73162441,103290.0,103280.0,0.003]
[1747643094098,0.73162441,103290.0,103280.0,0.001]
[1747643097336,1.07162441,103290.0,103280.0,0.001]
[1747643100312,0.69835347,103290.0,103280.0,0.001]
[1747643100746,0.86066441,103290.0,103280.0,0.001]
[1747643100951,0.74795501,103290.0,103280.0,0.001]
[1747643101160,0.73827363,103290.0,103280.0,0.001]
[1747643102215,0.72197363,103290.0,103280.0,0.001]
[1747643103353,0.22934416,103290.0,103280.0,0.22043055]
[1747643103562,0.23902554,103290.0,103280.0,0.23603055]
[1747643103738,0.24870664,103290.0,103280.0,0.24571249]
[1747643103963,0.04539503,103290.0,103280.0,0.25539434]
[1747643104168,0.05507632,103290.0,103280.0,0.2650761]
[1747643104319,0.26806875,103290.0,103280.0,0.27181062]
[1747643104735,0.25838793,103290.0,103280.0,0.25244701]
[1747643104938,0.03571393,103290.0,103280.0,0.26212877]
[1747643105148,0.06475761,103290.0,103280.0,0.26752071]
[1747643105910,0.05507623,103290.0,103280.0,0.26752071]
[1747643106082,0.24870581,103290.0,103280.0,0.26752071]
[1747643106242,0.25838719,103290.0,103280.0,0.26752071]
[1747643107232,0.26806866,103290.0,103280.0,0.25783895]
[1747643107431,0.06475761,103290.0,103280.0,0.26752071]
[1747643108892,0.25838719,103290.0,103280.0,0.26752071]
[1747643109135,0.25838719,103290.0,103280.0,0.24223895]
[1747643109365,0.25838719,103290.0,103280.0,0.2519208]
[1747643109777,0.25838719,103290.0,103280.0,0.24223895]
[1747643109990,0.25838719,103290.0,103280.0,0.25192071]
[1747643110210,0.26806866,103290.0,103280.0,0.22613895]
[1747643110462,0.40133648,103290.0,103280.0,0.01312646]
[1747643110667,0.43293648,103290.0,103280.0,0.01312646]
[1747643110876,0.41683648,103290.0,103280.0,0.01312646]
[1747643111067,0.4071551,103290.0,103280.0,0.01312646]
[1747643111506,0.22934416,103290.0,103280.0,0.20677479]
[1747643111722,0.22934416,103290.0,103280.0,0.01312646]
[1747643112103,0.22934416,103290.0,103280.0,0.22613933]
[1747643112979,0.22934416,103290.0,103280.0,0.21645711]
[1747643113199,0.22934416,103290.0,103280.0,0.22613933]
[1747643114524,0.22934416,103290.0,103280.0,0.21645711]
[1747643115590,0.22934332,103290.0,103280.0,0.25212127]
[1747643115736,0.23902479,103290.0,103280.0,0.26812127]
[1747643115920,0.2487058,103290.0,103280.0,0.28748488]
[1747643116229,0.03571374,103290.0,103280.0,0.28748488]
[1747643116423,0.04539465,103290.0,103280.0,0.28748488]
[1747643116624,0.05507584,103290.0,103280.0,0.28748488]
[1747643116824,0.04539465,103290.0,103280.0,0.28748488]
[1747643117370,0.05507575,103290.0,103280.0,0.28748488]
[1747643118551,0.04539465,103290.0,103280.0,0.28748488]
[1747643118721,0.05507566,103290.0,103280.0,0.28748488]
[1747643118956,0.05507566,103290.0,103280.0,0.28648488]
[1747643119304,0.05507566,103290.0,103280.0,0.28848488]
[1747643120910,0.05507566,103290.0,103280.0,0.29048488]
[1747643121798,0.06475685,103290.0,103280.0,0.29048488]
[1747643121972,0.05507566,103290.0,103280.0,0.29048488]
[1747643123138,0.03571374,103290.0,103280.0,0.29048488]
[1747643123363,0.04539456,103290.0,103280.0,0.29048488]
[1747643123558,0.02603311,103290.0,103280.0,0.29048488]
[1747643123941,0.03571383,103290.0,103280.0,0.29048488]
[1747643124341,0.02603311,103290.0,103280.0,0.29048488]
[1747643124526,0.04539446,103290.0,103280.0,0.29048488]
[1747643124729,0.05507537,103290.0,103280.0,0.29048488]
[1747643124948,0.04539446,103290.0,103280.0,0.29048488]
[1747643125115,0.05507537,103290.0,103280.0,0.29048488]
[1747643125539,0.02603311,103290.0,103280.0,0.29048488]
[1747643125913,0.02603311,103290.0,103280.0,0.38779428]
[1747643126230,0.02603311,103290.0,103280.0,0.80149428]
[1747643128862,0.02603311,103290.0,103280.0,0.81725874]
[1747643131247,0.03571374,103290.0,103280.0,0.71994934]
[1747643131453,0.05507566,103290.0,103280.0,0.67796759]
[1747643131664,0.25838653,103290.0,103280.0,0.66828583]
[1747643131835,0.25838653,103290.0,103280.0,0.67796777]
[1747643131836,0.268068,103290.0,103280.0,0.67796777]
[1747643132213,0.25838737,103290.0,103280.0,0.24490379]
[1747643132403,0.42711749,103290.0,103280.0,0.23522157]
[1747643132598,0.42711749,103290.0,103280.0,0.24490379]
[1747643133051,0.26480655,103290.0,103280.0,0.24490379]
[1747643133461,0.26480655,103290.0,103280.0,0.23522157]
[1747643133775,0.43293639,103290.0,103280.0,0.03189092]
[1747643133975,0.36793485,103290.0,103280.0,0.03189092]
[1747643134197,0.23902499,103290.0,103280.0,0.23522157]
[1747643134379,0.02603311,103290.0,103280.0,0.26426777]
[1747643134558,0.05507613,103290.0,103280.0,0.28898507]
[1747643134753,0.24870571,103290.0,103280.0,0.28898507]
[1747643134962,0.25838718,103290.0,103280.0,0.28998507]
[1747643135164,0.25838718,103290.0,103280.0,0.27830331]
[1747643136817,0.25838718,103290.0,103280.0,0.2619035]
[1747643137032,0.4079551,103290.0,103280.0,0.01312646]
[1747643137171,0.4079551,103290.0,103280.0,0.2164572]
[1747643137609,0.24564416,103290.0,103280.0,0.2164572]
[1747643139155,0.24564416,103290.0,103280.0,0.22613952]
[1747643140777,0.22934416,103290.0,103280.0,0.22613952]
[1747643141335,0.24474416,103290.0,103280.0,0.22613952]
[1747643141832,0.22934416,103290.0,103280.0,0.22613952]
[1747643143432,0.21966269,103290.0,103280.0,0.2164572]
[1747643144018,0.21966269,103290.0,103280.0,0.01312646]
[1747643144355,0.50988303,103290.0,103280.0,0.01312646]
[1747643146704,0.50988303,103290.0,103280.0,0.01559646]
[1747643150259,0.50988303,103290.0,103280.0,0.00886194]
[1747643152421,0.50988303,103290.0,103280.0,0.00347]
[1747643154395,0.31697209,103290.0,103280.0,0.00347]
[1747643154613,0.31697209,103290.0,103280.0,0.03437]
[1747643155018,0.31697209,103290.0,103280.0,0.01907]
[1747643155173,0.47928303,103290.0,103280.0,0.00347]
[1747643155574,0.49548303,103290.0,103280.0,0.00347]
[1747643156765,0.33317209,103290.0,103280.0,0.00347]
[1747643156956,0.49548303,103290.0,103280.0,0.00347]
[1747643157305,0.49548303,103290.0,103280.0,0.00987]
[1747643157519,0.47928303,103290.0,103280.0,0.00987]
[1747643159806,0.49428303,103290.0,103280.0,0.00987]
[1747643160495,1.01319397,103290.0,103280.0,0.00987]
[1747643161266,1.22295397,103290.0,103280.0,0.00987]
[1747643161676,1.22295397,103290.0,103280.0,0.00887]
[1747643162076,1.06064303,103290.0,103280.0,0.00887]
[1747643162975,1.22295397,103290.0,103280.0,0.00887]
[1747643164387,1.06064303,103290.0,103280.0,0.00887]
[1747643165155,1.22295397,103290.0,103280.0,0.00887]
[1747643169454,1.23280749,103290.0,103280.0,0.00887]
[1747643170083,1.23290749,103290.0,103280.0,0.00887]
[1747643174572,1.0132448,103290.0,103280.0,0.00887]
[1747643174852,1.20687438,103290.0,103280.0,0.00887]
[1747643176071,1.24141523,103290.0,103280.0,0.00887]
[1747643176351,1.49103557,103290.0,103280.0,0.00887]
[1747643176545,1.32872463,103290.0,103280.0,0.00887]
[1747643176742,0.02914264,103290.0,103280.0,0.04117]
[1747643176976,0.48259534,103290.0,103280.0,0.04117]
[1747643177191,0.48259534,103290.0,103280.0,0.04791166]
[1747643177404,0.64490628,103290.0,103280.0,0.01561166]
[1747643177656,0.69239534,103290.0,103280.0,0.01561166]
[1747643177863,0.69239534,103290.0,103280.0,0.04771166]
[1747643178061,0.69239534,103290.0,103280.0,0.04097]
[1747643178260,0.69339534,103290.0,103280.0,0.04097]
[1747643178631,0.69239534,103290.0,103280.0,0.04097]
[1747643178830,0.90255534,103290.0,103280.0,0.04097]
[1747643179259,0.48359534,103290.0,103280.0,0.04097]
[1747643179496,0.90255534,103290.0,103280.0,0.04097]
[1747643182049,1.24255534,103290.0,103280.0,0.02457]
[1747643182909,0.01098294,103290.0,103280.0,0.50622552]
[1747643183149,0.0011,103290.0,103280.0,0.79824292]
[1747643183614,0.02046173,103290.0,103280.0,0.3422712]
[1747643183837,0.02046135,103290.0,103280.0,0.27400792]
[1747643184086,0.0001,103290.0,103280.0,0.28074672]
[1747643184307,0.0001,103290.0,103280.0,0.28174672]
[1747643184532,0.00978072,103290.0,103280.0,0.28174672]
[1747643184771,0.0001,103290.0,103280.0,0.28174672]
[1747643185452,0.0001,103290.0,103280.0,0.28274672]
[1747643202557,0.0001,103290.0,103280.0,0.27306496]
[1747643202558,0.01946173,103290.0,103280.0,0.27306496]
[1747643202759,0.01946173,103290.0,103280.0,0.23238292]
[1747643202760,0.27657657,103290.0,103280.0,0.23238292]
[1747643202896,0.47988828,103290.0,103280.0,0.24206514]
[1747643203192,0.0001,103290.0,103280.0,1.36795919]
[1747643203610,0.0001,103290.0,103280.0,0.95425919]
[1747643204014,0.0001,103290.0,103280.0,0.95325919]
[1747643204315,0.0001,103290.0,103280.0,0.96226733]
[1747643204483,0.0001,103290.0,103280.0,0.96526733]
[1747643204687,0.0001,103290.0,103280.0,0.96426733]
[1747643204964,0.0001,103290.0,103280.0,0.96626733]
[1747643206273,0.0001,103290.0,103280.0,0.75698733]
[1747643206485,0.0001,103290.0,103280.0,1.17562733]
[1747643207712,0.0001,103290.0,103280.0,1.16661919]
[1747643210213,0.0001,103290.0,103280.0,1.58031919]
[1747643211855,0.0001,103290.0,103280.0,1.16661919]
[1747643217911,0.0001,103290.0,103280.0,0.95737919]
[1747643218565,0.0001,103290.0,103280.0,1.16649919]
[1747643219522,0.0001,103290.0,103280.0,1.16625919]
[1747643220391,0.0001,103290.0,103280.0,0.74797919]
[1747643220543,0.0001,103290.0,103280.0,1.16625919]
[1747643220751,0.0001,103290.0,103280.0,1.1606852]
[1747643224006,0.0001,103290.0,103280.0,0.9515652]
[1747643224218,0.0001,103290.0,103280.0,1.1606452]
[1747643225381,0.0001,103290.0,103280.0,1.5743452]
[1747643225590,0.0001,103290.0,103280.0,0.7187958]
[1747643225719,0.00978082,103290.0,103280.0,0.2733958]
[1747643225925,0.00978072,103290.0,103280.0,0.2733958]
[1747643226175,0.01946173,103290.0,103280.0,0.2733958]
[1747643226410,0.01946163,103290.0,103280.0,0.27115409]
[1747643226633,0.0001,103290.0,103280.0,0.28715409]
[1747643226845,0.0001,103290.0,103280.0,0.30335409]
[1747643227064,0.0001,103290.0,103280.0,0.51255409]
[1747643227701,0.0001,103290.0,103280.0,0.60986349]
[1747643229232,0.0001,103290.0,103280.0,1.02764289]
[1747643229458,0.0001,103290.0,103280.0,1.04218374]
[1747643229894,0.0001,103290.0,103280.0,1.45588374]
[1747643231323,0.0001,103290.0,103280.0,1.66496374]
[1747643231992,0.0001,103290.0,103280.0,1.58718434]
[1747643233046,0.0001,103290.0,103280.0,1.5961512]
[1747643236898,0.0001,103290.0,103280.0,1.58045919]
[1747643237771,0.0268382,103300.0,103290.0,0.60751373]
[1747643237988,0.0268382,103300.0,103290.0,0.70482313]
[1747643238195,0.0268382,103300.0,103290.0,0.71156193]
[1747643238482,0.0268382,103300.0,103290.0,0.71761075]
[1747643239513,0.0268382,103300.0,103290.0,0.7230054]
[1747643240023,0.0268382,103300.0,103290.0,0.7240054]
[1747643240261,0.0268382,103300.0,103290.0,0.7250054]
[1747643240494,0.0268382,103300.0,103290.0,1.1387054]
[1747643240849,0.0268382,103300.0,103290.0,1.14767097]
[1747643244861,0.0268382,103300.0,103290.0,1.13313012]
[1747643245022,0.0268382,103300.0,103290.0,1.11803012]
[1747643245229,0.0268382,103300.0,103290.0,1.13363012]
[1747643246680,0.0268382,103300.0,103290.0,1.14817097]
[1747643255999,0.0268382,103300.0,103290.0,1.52071012]
[1747643256420,0.0268382,103300.0,103290.0,1.31179012]
[1747643256828,0.0268382,103300.0,103290.0,1.32779012]
[1747643257414,0.04619787,103300.0,103290.0,1.31179012]
[1747643257639,0.03651799,103300.0,103290.0,1.21448072]
[1747643257834,0.03651799,103300.0,103290.0,1.22120826]
[1747643259001,0.03651799,103300.0,103290.0,1.23720826]
[1747643260153,0.0268382,103300.0,103290.0,1.22120826]
[1747643260360,0.03651789,103300.0,103290.0,1.22120826]
[1747643260784,0.0268382,103300.0,103290.0,1.22120826]
[1747643260955,0.03651789,103300.0,103290.0,1.23038072]
[1747643261791,0.03651789,103300.0,103290.0,1.21448072]
[1747643263397,0.0268382,103300.0,103290.0,1.24488072]
[1747643264342,0.0268382,103300.0,103290.0,1.22978072]
[1747643264672,0.0268382,103300.0,103290.0,1.24518072]
[1747643265275,0.06189787,103300.0,103290.0,1.21448072]
[1747643265483,0.04619787,103300.0,103290.0,1.21448072]
[1747643265696,0.05221799,103300.0,103290.0,1.00552072]
[1747643265936,0.06189806,103300.0,103290.0,1.00552072]
[1747643266134,0.2909695,103300.0,103290.0,0.67520163]
[1747643266458,0.09735857,103300.0,103290.0,0.67520163]
[1747643266956,0.03651799,103300.0,103290.0,0.67520163]
[1747643267160,0.0268382,103300.0,103290.0,0.67520163]
[1747643267360,0.0268382,103300.0,103290.0,0.70810163]
[1747643267520,0.03651799,103300.0,103290.0,0.70587372]
[1747643267720,0.04619787,103300.0,103290.0,0.6998249]
[1747643270192,0.04619787,103300.0,103290.0,0.70879047]
[1747643270624,0.23012883,103300.0,103290.0,0.02983668]
[1747643270791,0.53076434,103300.0,103290.0,0.02983668]
[1747643271136,0.36851886,103300.0,103290.0,0.02983668]
[1747643271341,0.27120946,103300.0,103290.0,0.02983668]
[1747643271736,0.69300982,103300.0,103290.0,0.02883668]
[1747643271944,0.53076434,103300.0,103290.0,0.01670323]
[1747643272670,0.53076434,103300.0,103290.0,0.01570323]
[1747643273739,0.53076434,103300.0,103280.0,0.0239367]
[1747643273740,0.59655604,103300.0,103280.0,0.0239367]
[1747643273947,0.24449224,103290.0,103280.0,0.29536443]
[1747643274296,0.25417315,103290.0,103280.0,0.29536443]
[1747643274424,0.24449224,103290.0,103280.0,0.31178534]
[1747643274861,0.24449224,103290.0,103280.0,0.31378534]
[1747643275070,0.23481105,103290.0,103280.0,0.30410302]
[1747643275481,0.23481105,103290.0,103280.0,0.30310302]
[1747643275715,0.23481105,103290.0,103280.0,0.30410302]
[1747643275951,0.23481105,103290.0,103280.0,0.31478534]
[1747643276380,0.23481105,103290.0,103280.0,0.32446756]
[1747643277167,0.23481105,103290.0,103280.0,0.33414969]
[1747643278005,0.24449224,103290.0,103280.0,0.33414969]
[1747643278201,0.24449224,103290.0,103280.0,0.34383173]
[1747643278921,0.21299224,103290.0,103280.0,0.34383126]
[1747643279138,0.22839224,103290.0,103280.0,0.34383126]
[1747643279365,0.23012939,103300.0,103290.0,0.21299224]
[1747643279532,0.04619806,103300.0,103290.0,0.24785416]
[1747643280121,0.04619806,103300.0,103290.0,0.25459275]
[1747643280564,0.24948925,103300.0,103290.0,0.22941193]
[1747643280741,0.61661646,103300.0,103290.0,0.00673859]
[1747643281122,0.36921886,103300.0,103280.0,0.30934355]
[1747643281508,0.01936154,103290.0,103280.0,0.33492512]
[1747643281761,0.02904264,103290.0,103280.0,0.33492512]
[1747643281948,0.02904264,103290.0,103280.0,0.35152512]
[1747643282096,0.03872393,103290.0,103280.0,0.34166086]
[1747643282297,0.03872393,103290.0,103280.0,0.33297929]
[1747643282504,0.03872393,103290.0,103280.0,0.31707929]
[1747643282713,0.0268382,103300.0,103290.0,0.25397288]
[1747643283957,0.0268382,103300.0,103290.0,0.26070862]
[1747643284562,0.0268382,103300.0,103290.0,0.26609063]
[1747643284784,0.0268382,103300.0,103290.0,0.26709063]
[1747643285319,0.0268382,103300.0,103290.0,0.26809063]
[1747643286800,0.0268382,103300.0,103290.0,0.92874088]
[1747643287248,0.0268382,103300.0,103290.0,0.93770645]
[1747643288256,0.0268382,103300.0,103290.0,1.14658645]
[1747643288838,0.0268382,103300.0,103290.0,1.56028645]
[1747643290565,0.0268382,103300.0,103290.0,1.55132088]
[1747643290817,0.0268382,103300.0,103290.0,1.55124088]
[1747643291407,0.0268382,103300.0,103290.0,1.54924088]
[1747643291636,0.0268382,103300.0,103290.0,1.55124088]
[1747643291907,0.0268382,103300.0,103290.0,1.55324088]
[1747643296261,0.0268382,103300.0,103290.0,1.13564088]
[1747643296480,0.0268382,103300.0,103290.0,1.55316088]
[1747643296695,0.0268382,103300.0,103290.0,1.56211442]
[1747643297081,0.0268382,103300.0,103290.0,1.14459442]
[1747643297429,0.0268382,103300.0,103290.0,1.56211442]
[1747643298897,0.0268382,103300.0,103290.0,1.56203442]
[1747643302003,0.02041536,103300.0,103290.0,1.63981382]
[1747643302338,0.02041536,103300.0,103290.0,1.71007155]
[1747643302522,0.02041536,103300.0,103290.0,1.64981382]
[1747643303563,0.02041536,103300.0,103290.0,1.64086028]
[1747643303763,0.02041536,103300.0,103290.0,1.21942028]
[1747643303969,0.02041536,103300.0,103290.0,1.64262028]
[1747643304136,0.02041536,103300.0,103290.0,1.64762028]
[1747643304792,0.02041536,103300.0,103290.0,1.23392028]
[1747643305607,0.01541536,103300.0,103290.0,1.23392028]
[1747643307160,0.0201007,103310.0,103300.0,0.23719217]
[1747643307384,0.0201007,103310.0,103300.0,0.36590157]
[1747643307585,0.0201007,103310.0,103300.0,0.37263731]
[1747643308149,0.02014857,103310.0,103300.0,0.37263731]
[1747643308336,0.02014857,103310.0,103300.0,0.38201932]
[1747643308545,0.02014857,103310.0,103300.0,0.38601932]
[1747643308756,0.02014857,103310.0,103300.0,0.80317932]
[1747643309734,0.02014857,103310.0,103300.0,0.81214454]
[1747643309904,0.02006018,103310.0,103300.0,0.81214454]
[1747643310862,0.02006018,103310.0,103300.0,0.81210454]
[1747643311495,0.02006018,103310.0,103300.0,0.58904369]
[1747643311663,0.02006018,103310.0,103300.0,0.79756369]
[1747643311883,0.02006018,103310.0,103300.0,0.57218454]
[1747643312096,0.02006018,103310.0,103300.0,0.70358454]
[1747643312292,0.02006018,103310.0,103300.0,1.12070454]
[1747643314378,0.02006018,103310.0,103300.0,1.13620454]
[1747643314928,0.02006018,103310.0,103300.0,1.12070454]
[1747643316540,0.02006018,103310.0,103300.0,1.15170454]
[1747643318749,0.02006018,103310.0,103300.0,0.70358454]
[1747643318953,0.03516018,103310.0,103300.0,1.12070454]
[1747643319102,0.02006018,103310.0,103300.0,1.12070454]
[1747643320697,0.02006018,103310.0,103300.0,0.91218454]
[1747643320883,0.02006018,103310.0,103300.0,1.12070454]
[1747643320884,0.05126018,103310.0,103300.0,1.12070454]
[1747643321091,0.05126018,103310.0,103300.0,0.78070454]
[1747643321294,0.07061798,103310.0,103300.0,0.46033429]
[1747643322050,0.06093894,103310.0,103300.0,0.46033429]
[1747643322464,0.07061788,103310.0,103300.0,0.45633429]
[1747643322675,0.07061788,103310.0,103300.0,0.45833429]
[1747643323404,0.07061788,103310.0,103300.0,0.45433429]
[1747643323610,0.06093894,103310.0,103300.0,0.45433429]
[1747643323878,0.05511788,103310.0,103300.0,0.45633429]
[1747643324567,0.07999701,103310.0,103300.0,0.45633429]
[1747643324885,0.07031788,103310.0,103300.0,0.45633429]
[1747643325096,0.07031788,103310.0,103300.0,0.24773429]
[1747643325283,0.07999692,103310.0,103300.0,0.2455108]
[1747643326215,0.52098793,103310.0,103300.0,0.22615076]
[1747643326422,0.52098793,103310.0,103300.0,0.23583092]
[1747643328663,0.50162939,103310.0,103300.0,0.02285948]
[1747643328896,0.59893879,103310.0,103300.0,0.02285948]
[1747643329104,0.59893879,103310.0,103300.0,0.01611775]
[1747643330047,0.59893879,103310.0,103300.0,0.00938201]
[1747643330264,0.59893879,103310.0,103300.0,0.004]
[1747643332365,0.25423179,103310.0,103300.0,0.004]
[1747643332575,0.49194988,103310.0,103300.0,0.004]
[1747643332760,0.49194988,103310.0,103300.0,0.20729119]
[1747643332998,0.49194988,103310.0,103300.0,0.20729138]
[1747643333166,0.49194988,103310.0,103300.0,0.21697182]
[1747643333401,0.49194988,103310.0,103300.0,0.22665217]
[1747643336137,0.49194988,103310.0,103300.0,0.004]
[1747643336352,0.49194988,103310.0,103300.0,0.20729138]
[1747643336761,0.49194988,103310.0,103300.0,0.004]
[1747643337405,0.58925928,103310.0,103300.0,0.004]
[1747643338049,1.23717692,103310.0,103300.0,0.004]
[1747643338259,1.07938708,103290.0,103280.0,0.00887]
[1747643338474,1.59601648,103290.0,103280.0,0.00887]
[1747643340521,1.60701648,103290.0,103280.0,0.00887]
[1747643340749,1.61155733,103290.0,103280.0,0.00887]
[1747643340959,0.24423055,103280.0,103270.0,0.01570695]
[1747643341160,0.57425024,103270.0,103260.0,0.0777794]
[1747643341371,0.91895724,103270.0,103260.0,0.0777794]
[1747643342132,1.12747724,103270.0,103260.0,0.0777794]
[1747643342336,1.12747724,103270.0,103260.0,0.07782727]
[1747643343226,0.90395724,103270.0,103260.0,0.07782727]
[1747643343429,0.90595724,103270.0,103260.0,0.08751156]
[1747643343649,0.65855964,103270.0,103260.0,0.08751156]
[1747643343889,0.90595724,103270.0,103260.0,0.07782727]
[1747643344408,0.21503312,103270.0,103260.0,0.29088121]
[1747643344688,0.02136548,103270.0,103260.0,0.30056503]
[1747643344943,0.03104855,103270.0,103260.0,0.31024866]
[1747643345182,0.03204855,103270.0,103260.0,0.31024866]
[1747643345678,0.04073181,103270.0,103260.0,0.31024866]
[1747643345884,0.03104855,103270.0,103260.0,0.32644866]
[1747643346093,0.02904855,103270.0,103260.0,0.34194866]
[1747643346644,0.0096826,103270.0,103260.0,0.34194866]
[1747643346861,0.01936539,103270.0,103260.0,0.34194866]
[1747643347070,0.02904836,103270.0,103260.0,0.34194866]
[1747643348229,0.02904836,103270.0,103260.0,0.26416926]
[1747643348695,0.03873143,103270.0,103260.0,0.26416926]
[1747643349241,0.01936539,103270.0,103260.0,0.26416926]
[1747643349438,0.02904827,103270.0,103260.0,0.26416926]
[1747643349647,0.02904827,103270.0,103260.0,0.25448563]
[1747643349648,0.48947918,103270.0,103260.0,0.25448563]
[1747643349861,0.2861295,103270.0,103260.0,0.27385298]
[1747643350089,0.02904874,103270.0,103260.0,0.27385298]
[1747643350483,0.0387319,103270.0,103260.0,0.27385298]
[1747643350881,0.04841525,103270.0,103260.0,0.27385298]
[1747643351100,0.0387319,103270.0,103260.0,0.27385298]
[1747643351301,0.0387319,103270.0,103260.0,0.68755298]
[1747643352040,0.01936567,103270.0,103260.0,0.68755298]
[1747643352178,0.02904874,103270.0,103260.0,0.68755298]
[1747643352383,0.0387319,103270.0,103260.0,0.68755298]
[1747643352829,0.02904874,103270.0,103260.0,0.68755298]
[1747643353726,0.0387319,103270.0,103260.0,0.68755298]
[1747643354503,0.02904874,103270.0,103260.0,0.68755298]
[1747643354727,0.0387319,103270.0,103260.0,0.68755298]
[1747643354973,0.02904874,103270.0,103260.0,0.68755298]
[1747643355148,0.0387319,103270.0,103260.0,0.68755298]
[1747643355961,0.01936567,103270.0,103260.0,0.69292913]
[1747643356171,0.02904864,103270.0,103260.0,0.69292913]
[1747643356401,0.0387318,103270.0,103260.0,0.69292913]
[1747643356590,0.02904864,103270.0,103260.0,0.69966634]
[1747643356955,0.0387318,103270.0,103260.0,0.69966634]
[1747643357314,0.04841506,103270.0,103260.0,0.69966634]
[1747643357521,0.02904864,103270.0,103260.0,0.69966634]
[1747643357717,0.0387318,103270.0,103260.0,0.69966634]
[1747643361121,0.04841506,103270.0,103260.0,0.69966634]
[1747643361306,0.0387318,103270.0,103260.0,0.69966634]
[1747643361709,0.0388318,103270.0,103260.0,0.69966634]
[1747643364920,0.29591266,103270.0,103260.0,0.69966634]
[1747643365089,0.4757311,103270.0,103260.0,0.42586123]
[1747643365511,0.4912311,103270.0,103260.0,0.42586123]
[1747643365925,0.5885405,103270.0,103260.0,0.42586123]
[1747643366545,1.0446581,103270.0,103260.0,0.01216123]
[1747643366752,1.1372605,103270.0,103260.0,0.00542402]
[1747643366954,1.5938581,103270.0,103260.0,4.787e-05]
[1747643367716,1.3474605,103270.0,103260.0,4.787e-05]
[1747643368445,1.3484605,103270.0,103260.0,4.787e-05]
[1747643385011,1.4844475,103270.0,103260.0,4.787e-05]
[1747643385206,1.6930875,103270.0,103260.0,4.787e-05]
[1747643386886,1.70662835,103270.0,103260.0,4.787e-05]
[1747643387090,1.70562835,103270.0,103260.0,4.787e-05]
[1747643387653,1.70762835,103270.0,103260.0,4.787e-05]
[1747643388026,1.71062835,103270.0,103260.0,4.787e-05]
[1747643388405,1.72062835,103270.0,103260.0,4.787e-05]
[1747643388970,1.73062835,103270.0,103260.0,4.787e-05]
[1747643392497,1.63331895,103270.0,103260.0,4.787e-05]
[1747643396455,1.63188627,103270.0,103260.0,4.787e-05]
[1747643400535,1.65907772,103270.0,103260.0,4.787e-05]
[1747643401661,1.64995115,103270.0,103260.0,4.787e-05]